Workbook

Sheet 概要（５会計年度）
A1: 調査の概要
A3: １ 調査の目的
A4: この調査は、学校教育、社会教育、生涯学習関連及び教育行政のために地方公共団体から支出さ
A5: れた経費並びに授業料等の収入の実態を明らかにして、教育諸施策を検討・立案するための基礎資
A6: 料を得ることを目的として、文部科学省が昭和24年度以降毎年度実施しているものです。
A8: ２ 調査の対象
A9: 区 分 | G9: 対 象 ( 学 校 ) 数 | J9: 幼 児・児 童・生 徒 数
G10: 合計 | H10: 県 | I10: 市町村 | J10: 合計 | L10: 県 | M10: 市町村
A11: 教育費調査 | B11: 教育委員会 | G11: 34 | H11: 1 | I11: 33
B12: 公 立 学 校 計 | G12: =SUM(G13:G23) -> 1,536 | H12: =SUM(H13:H23) -> 188 | I12: =SUM(I13:I23) -> 1,348 | J12: =SUM(J13:K23) -> 768,620 | L12: =SUM(L13:L23) -> 121,660 | M12: =SUM(M13:M23) -> 646,960
C13: 幼稚園 | G13: =SUM(H13:I13) -> 34 | H13: 0 | I13: 34 | J13: =SUM(L13:M13) -> 1,257 | L13: 0 | M13: 1,257
C14: 小学校 | G14: 847 | H14: 0 | I14: 847 | J14: 428,446 | L14: 0 | M14: 428,446
C15: 中学校 | G15: 406 | H15: 0 | I15: 406 | J15: 197,936 | L15: 0 | M15: 197,936
C16: 特別支援学校 | G16: 49 | H16: 29 | I16: 20 | J16: 8,110 | L16: 5,792 | M16: 2,318
C17: 高等学校（全日制） | G17: 146 | H17: 132 | I17: 14 | J17: =SUM(L17:M17) -> 117,430 | L17: 106,328 | M17: 11,102
C18: 高等学校（定時制） | G18: 27 | H18: 20 | I18: 7 | J18: 4,533 | L18: 2,831 | M18: 1,702
C19: 高等学校（通信制） | G19: 2 | H19: 2 | I19: 0 | J19: 3,941 | L19: 3,941 | M19: 0
C20: 中等教育学校 | G20: 2 | H20: 2 | I20: 0 | J20: 1,880 | L20: 1,880 | M20: 0
C21: 専修学校 | G21: =SUM(H21:I21) -> 5 | H21: 3 | I21: 2 | J21: =SUM(L21:M21) -> 1,130 | L21: 888 | M21: 242
C22: 幼保連携型認定こども園 | G22: =SUM(H22:I22) -> 13 | H22: 0 | I22: 13 | J22: =SUM(L22:M22) -> 1,369 | L22: 0 | M22: 1,369
C23: 義務教育学校 | G23: 5 | H23: 0 | I23: 5 | J23: 2,588 | L23: 0 | M23: 2,588
A24: 生涯学習関連費調査 （生涯学習関連施設） | G24: 32 | H24: 32 | I24: 0
A25: (注) | C25: １ 学校数は、文部科学省「令和５年度学校基本統計（学校基本調査報告書）」（令和５年５月１日現在）によります。
C26: ２ 学校数には、分校を含みます。（小学校４校、中学校４校、市立特別支援学校１校）
C27: ３ 高等学校（全日制）の生徒数には、専攻科及び別科を含みます。
C28: ４ 生涯学習関連費調査は、県知事部局所管の施設のみ調査対象となります。
A30: ３ 調査の対象期間
A31: 令和５会計年度（令和５年４月１日～令和６年３月31日）
A33: ４ 調査の内容
A34: （１）教育委員会等における教育費調査
A35: 教育に係る支出を｢学校教育費｣｢社会教育費｣｢教育行政費｣の３つの分野に分類し、それぞれの
A36: 分野ごとに支出額を負担区分(財源)別、使途(支出項目)別に調査しました。
A37: また、収入に係る調査を行いました。
A39: （２）知事部局における生涯学習関連費調査
A40: この調査は、平成14年度から実施されました。
A41: 支出額を負担区分(財源)別、使途(支出項目)別に調査しました。
A43: ５ 調査事項の説明
A44: （１）分野別分類
A45: 分 野 | E45: 調 査 の 対 象
A46: 教育費調査 | C46: 学校教育費 | E46: 大学、短期大学を除く、県内公立学校において学校教育活動のために支出した経費
C47: 社会教育費 | E47: 地方公共団体が条例により設置し、教育委員会又は地方教育行政の組織及び運営に関する法律第23条第１項第１号により地方公共団体の長が所管する社会教育施設の経費及び教育委員会が行った社会教育活動のために支出した経費（体育・文化関係、文化財保護を含む）
C50: 教育行政費 | E50: 教育委員会事務局（所管の教育研究所等を含む）の一般行政事務及び教育委員会の運営のために支出した経費
C52: 教育に係る収入 | E52: 教育に係る特定財源のうち、国･県の補助金･負担金･分担金等、地方債及び寄附金以外の収入
A53: 生涯学習関連費調査 （生涯学習関連費） | E53: 地方公共団体が条例により設置し、知事部局が所管する生涯学習関連施設の経費
E54: （体育・文化関係、文化財保護を含む）
A55: （２）財源別分類
A56: ア 公 費
A57: 国及び地方公共団体が、租税、使用料、基本財産収入、地方債及び公費組入れ寄附金等の財源
A58: から教育のために支出した経費をいい、次の項目に区分します。
A60: (ア) 国庫補助金
A61: 国が地方公共団体に交付した補助金・負担金等を財源とする経費をいいます。
A62: 文部科学省以外からの補助金等も含めます。なお､地方交付税を財源とした経費は､県支出金・
A63: 市町村支出金として扱います。
A65: (イ) 県支出金
A66: 県が地方税・地方交付税・使用料・手数料収入等の財源から支出した経費をいいます。
A67: 教育委員会以外の部局からの支出も含めます。また、市町村に交付した補助金・負担金等も
A68: 含めます。
A70: (ウ) 市町村支出金
A71: 市町村が地方税・地方交付税・使用料・手数料収入等の財源から支出した経費をいいます。
A72: 教育委員会以外の部局からの支出も含めます。
A74: (エ) 地 方 債
A75: 地方公共団体が教育のために起債した経費のうち、当該会計年度中に支出した経費をいいま
A76: す。
A77: (オ) 公費組入れ寄附金
A78: 地方公共団体の歳入として､決算に計上された寄附金･贈与金のうち､当該会計年度中に教育目
A79: 的で支出した経費をいいます。
A81: イ 公費に組み入れられない寄附金（私費）
A82: 団体又は個人から収納した寄附金から教育のために支出した経費のうち､公費に組み入れなかっ
A83: たものをいいます。
A85: （３）支出項目別分類
A86: ア 消費的支出
A87: 例年経常的に支出する経費で、次の項目に区分します。
A89: (ア) 人 件 費
A90: 教員及び職員の給与並びに共済組合等負担金、恩給費等、退職・死傷手当等の経費をいいま
A91: す。
A93: (イ) 教育活動費
A94: 児童・生徒に対する教育活動及びその補助のために要した経費をいいます。
A95: 特別活動費（児童・生徒会活動、クラブ活動、学校行事等）
A96: 教授用消耗品費(設備・備品・図書の購入に要した経費は除く)、教員等の旅費
A98: (ウ) 管 理 費
A99: 施設等の管理運営及び効用を維持するための経費をいいます。
A100: (修繕費、維持費、消耗品費、光熱水費、事務職員等の旅費等)
A102: (エ) 補助活動費
A103: 正規の学校教育に含まれないが、それと密接な関係を有している学校の事業に要した経費をい
A104: います。
A105: (健康診断･身体検査等の経費、保健衛生にかかる経費、給食･寄宿舎の運営費等)
A107: (オ) 所定支払金
A108: 定期的に支払義務を生ずる経費をいいます。
A109: (日本スポーツ振興センター掛金､土地･建物借上料､建物等保険料､校長会等負担金等)
A111: イ 資本的支出
A112: 土地の取得、施設の建設及び大規模な改修、設備・備品の購入、図書の購入に要した経費で次の
A113: 項目に区分します。
A114: (ア) 土 地 費
A115: 土地の購入、移転補償費、整地のための経費
A117: (イ) 建 築 費
A118: 施設（校舎･体育館･プール･倉庫･寄宿舎等の建物）の新築並びに増改築等、形状ないし構造そ
A119: のものを改良した経費をいいます。
A121: (ウ) 設備･備品費
A122: 土地費、建築費に含まれない設備・備品の購入・補充・取付・運搬等に要した経費をいいます。
A124: (エ) 図書購入費
A125: 学校図書室・図書館等に備え付ける図書のうち、単行本・全集本・辞書等備品に類するものの
A126: 購入に要した経費をいいます。
A127: （法規・法令集の加除を含む）
A129: ウ 債務償還費
A130: 地方債の元金の返済、利子の支払及び手数料に要した経費をいいます。
A133: 地方教育費調査（教育費調査・生涯学習関連費調査）の構成
